Cogmind - Beta 15 @@@ ROGUE MODE // 2025.10.21 @ 06:51:32 // Winter2019/RPGLIKE Player: War__Prophet Result: Destroyed by G-50 Soldier with Heavy Laser Performance ------------- Evolutions (4) 2000 Regions Visited (10) 2000 Robots Destroyed (67) 335 Value Destroyed (1694) 1694 Prototype IDs (0) 0 Alien Tech Used (0) 0 Bonus (-1818) -1818 TOTAL SCORE: 4211 Bonus ------- Follower Combat Kills 180 Entered DSFs 500 Friendly Fire -2498 Cogmind --------- Core Integrity 0/2200 Matter 235/300 Energy 290/290 System Corruption 0% Temperature Cool (45) Movement Flying (32) Location -6/Lower Caves Parts ------- > --- POWER (2) -------- Improved Deuterium Engine > --- PROPULSION (2) --- Cesium-ion Thruster Cesium-ion Thruster > --- UTILITY (2) ------ Improved Terrain Scanner > --- WEAPON (2) ------- Chainsword Chainsword > --- INVENTORY (0) ---- (None) Peak State ------------ > --- POWER ------------ Light Angular Momentum Engine Antimatter Reactor > --- PROPULSION ------- Cesium-ion Thruster Cesium-ion Thruster > --- UTILITY ---------- Improved Terrain Scanner > --- WEAPON ----------- Chainsword Chainsword > --- INVENTORY -------- (None) [Rating: 29] Favorites ----------- Power Light Ion Engine Engine Light Ion Engine Power Core Light Nuclear Core Reactor Antimatter Reactor Propulsion VTOL Module Treads Light Treads Wheel Wheel Hover Unit Airjet Flight Unit VTOL Module Utility Improved Terrain Scanner Device Improved Terrain Scanner Hackware System Shield Protection Weapon Shielding Weapon Katana Energy Gun Small Laser Energy Cannon Particle Cannon Ballistic Gun Autogun Launcher Grenade Launcher Slashing Weapon Katana Build | -11 -10 -10 -9 -8 -7 -7 -7 -7 -6 -6 ------- Run | Yrd Mat Min Mat Mat Fac Was Fac DSF Fac Low Slots Evolved 4 | 4 . . . . . . . . . . Power 1 | 1 . . . . . . . . . . Propulsion 1 | 1 . . . . . . . . . . Utility 1 | 1 . . . . . . . . . . Weapon 1 | 1 . . . . . . . . . . Parts Attached 47 | 6 5 2 5 16 1 3 . 5 3 1 Power 12 | 2 1 . . 5 . 2 . . 1 1 Engine 8 | 2 1 . . 2 . 1 . . 1 1 Core 3 | . . . . 3 . . . . . . Reactor 1 | . . . . . . 1 . . . . Propulsion 11 | 2 2 1 2 2 . . . 2 . . Treads 2 | 2 . . . . . . . . . . Leg . | . . . . . . . . . . . Wheel 1 | . 1 . . . . . . . . . Hover 3 | . 1 . . 2 . . . . . . Flight 5 | . . 1 2 . . . . 2 . . Utility 9 | . 1 1 . 3 1 1 . . 2 . Device 3 | . . . . 2 1 . . . . . Storage . | . . . . . . . . . . . Processor . | . . . . . . . . . . . Hackware 2 | . . . . 1 . . . . 1 . Protection 4 | . 1 1 . . . 1 . . 1 . Artifact . | . . . . . . . . . . . Weapon 15 | 2 1 . 3 6 . . . 3 . . Energy Gun 2 | 2 . . . . . . . . . . Energy Cannon 1 | . . . 1 . . . . . . . Ballistic Gun 4 | . . . 2 2 . . . . . . Ballistic Cannon . | . . . . . . . . . . . Launcher 1 | . 1 . . . . . . . . . Special Weapon . | . . . . . . . . . . . Impact Weapon . | . . . . . . . . . . . Slashing Weapon 7 | . . . . 4 . . . 3 . . Piercing Weapon . | . . . . . . . . . . . Special Melee Weapon . | . . . . . . . . . . . Unidentified Prototypes . | . . . . . . . . . . . Parts Lost 9 | . . . . 5 . . . 3 . 1 Power 1 | . . . . 1 . . . . . . Propulsion 2 | . . . . 1 . . . 1 . . Utility 4 | . . . . 2 . . . 1 . 1 Weapon 2 | . . . . 1 . . . 1 . . Highest Loss Streak 3 | . . . . 3 . . . 1 . 1 To Critical Strikes . | . . . . . . . . . . . Average Backups . | . . . . . . . . . . . Power . | . . . . . . . . . . . Propulsion . | . . . . . . . . . . . Utility . | . . . . . . . . . . . Weapon . | . . . . . . . . . . . Tool/Special . | . . . . . . . . . . . Unused Backups . | . . . . . . . . . . . Power . | . . . . . . . . . . . Propulsion . | . . . . . . . . . . . Utility . | . . . . . . . . . . . Weapon . | . . . . . . . . . . . Tool/Special . | . . . . . . . . . . . Average Slot Usage (%) 86 | . 69 64 83 85 100 100 100 87 90 87 Engine 15 | . 25 25 25 12 12 12 12 12 21 12 Core 5 | . . . . 10 12 8 . . . . Reactor 1 | . . . . . . 3 12 11 2 . Treads 1 | . 21 . . . . . . . . . Hover 6 | . . 10 . 3 25 25 25 13 . . Flight 12 | . . 2 16 14 . . . 2 25 25 Device 10 | . . . . 10 21 21 12 12 12 12 Hackware 2 | . . . . 6 3 . . . 3 . Protection 6 | . 5 14 25 1 . 3 12 8 1 11 Ballistic Gun 3 | . . . 4 8 . . . . . . Launcher 1 | . 8 12 9 . . . . . . . Slashing Weapon 16 | . . . . 16 25 25 25 25 25 25 Peak Build Rating 29 | 6 6 6 12 22 22 28 28 29 29 27 Average Rating 17 | 4 5 5 7 17 21 25 28 25 24 24 On Entrance 16 | . 6 5 6 12 21 22 28 28 29 27 Naked Turns . | . . . . . . . . . . . Heaviest Build 40 | 11 12 11 15 21 21 38 38 40 32 26 Greatest Support 50 | 50 50 16 18 24 24 24 24 24 20 25 Greatest Overweight (x) 2 | 1 . . . 1 . 1 1 2 1 1 Average Overweight (x) . | . . . . . . . 1 1 . . Largest Inventory Capacity . | . . . . . . . . . . . Average Capacity . | . . . . . . . . . . . Most Carried . | . . . . . . . . . . . Average Carried . | . . . . . . . . . . . Final Capacity . | . . . . . . . . . . . Final Carried . | . . . . . . . . . . . Class Distribution -------------------- 23% | Gladiator 18% | Scout 17% | Mutant 12% | Scavenger-Scout 11% | Scavenger-Gladiator 9% | Sprinter 7% | Scavenger-Mutant Dominant Class ---------------- Mutant | -10/Materials Mutant | -10/Mines Mutant | -9/Materials Gladiator | -8/Materials Scavenger-Scout | -7/Factory Scavenger-Scout | -7/Waste Scavenger-Scout | -7/Factory Scavenger-Gladiator | -7/DSF Scavenger-Scout | -6/Factory Scout | -6/Lower Caves Resources | -11 -10 -10 -9 -8 -7 -7 -7 -7 -6 -6 ----------- Run | Yrd Mat Min Mat Mat Fac Was Fac DSF Fac Low Matter Collected 1222 | 260 90 10 361 411 30 30 . 7 23 . Remotely . | . . . . . . . . . . . Salvage Created 2317 | . 241 . 274 753 182 547 . 133 45 142 Parts 150 | . 11 . 16 74 6 27 . 4 5 7 Haulers Intercepted . | . . . . . . . . . . . Recyclers Shooed 2 | . 1 . . 1 . . . . . . Parts Field Recycled . | . . . . . . . . . . . Retrieved Matter . | . . . . . . . . . . . Parts Self-Destructed 2 | . . . . . . . . . . 2 Prevented 1 | . . . . . . . . . . 1 Kills | -11 -10 -10 -9 -8 -7 -7 -7 -7 -6 -6 ------- Run | Yrd Mat Min Mat Mat Fac Was Fac DSF Fac Low Combat Hostiles Destroyed 34 | . 4 . 9 15 1 . . 2 . 3 Melee 15 | . . . . 9 1 . . 2 . 3 Guns 8 | . . . 2 6 . . . . . . Cannons 1 | . . . 1 . . . . . . . AOE 9 | . 4 . 5 . . . . . . . Classes Destroyed 15 | . 4 . 1 5 . 3 . 1 . 1 Worker 8 | . 2 . . 6 . . . . . . Builder 3 | . . . . 2 1 . . . . . Tunneler 2 | . . . . 1 . . . . 1 . Recycler 2 | . 1 . . . 1 . . . . . Operator 3 | . . . . 1 1 . . . 1 . Watcher 3 | . 1 . 2 . . . . . . . Swarmer 5 | . . . . 3 . . . . . 2 Grunt 10 | . 4 . 3 3 . . . . . . Sentry 16 | . . . 6 8 1 . . . . 1 Specialist 2 | . . . . . . . . 2 . . Hunter 1 | . . . . 1 . . . . . . Samaritan 1 | . . . . . . . . . . 1 Surgeon 1 | . . . . . . 1 . . . . Thug 8 | . . . . . . 8 . . . . Butcher 2 | . . . . . . 2 . . . . Martyr 1 | . . . . . . 1 . . . . Best Kill Streak 8 | . 8 . 5 3 2 . . 1 1 2 Combat Bots Only 4 | . 4 . 4 3 1 . . 1 . 2 Max Kills in Single Turn 4 | . 4 . 2 1 1 1 . 1 1 1 Gunslinging . | . . . . . . . . . . . Exploded 2 | . 2 . 2 . . . . . . . Melee 1 | . . . . 1 1 . . 1 . 1 Uniques/NPCs Destroyed . | . . . . . . . . . . . Combat | -11 -10 -10 -9 -8 -7 -7 -7 -7 -6 -6 -------- Run | Yrd Mat Min Mat Mat Fac Was Fac DSF Fac Low Hostile Shots Fired 481 | . 11 . 71 160 45 . . 91 . 103 Missed 167 | . 2 . 30 47 21 . . 22 . 45 Hits 314 | . 9 . 41 113 24 . . 69 . 58 Projectile 314 | . 9 . 41 113 24 . . 69 . 58 Critical Strikes 12 | . . . 1 6 . . . 4 . 1 Actively Blocked 1 | . . . 1 . . . . . . . Damage Taken 4695 | . 171 . 746 1492 124 . . 1456 . 706 Core 3554 | . 152 . 572 1214 100 . . 1088 . 428 Absorbed by Shields 57 | . . . . . 57 . . . . . Redirected to Core 2251 | . 61 . 381 843 66 . . 631 . 269 Redirected to Shielding 96 | . . . 60 36 . . . . . . Core Remaining (%) 51 | 100 . 83 33 32 . . . 8 . . Volleys Fired 68 | . 4 . 38 26 . . . . . . Largest 2 | . 1 . 2 2 . . . . . . Hottest 98 | . 30 . 98 48 . . . . . . Shots Fired 106 | . 4 . 52 50 . . . . . . Gun 64 | . . . 14 50 . . . . . . Cannon 7 | . . . 7 . . . . . . . Launcher 35 | . 4 . 31 . . . . . . . Special . | . . . . . . . . . . . Kinetic 64 | . . . 14 50 . . . . . . Thermal 7 | . . . 7 . . . . . . . Explosive 35 | . 4 . 31 . . . . . . . Electromagnetic . | . . . . . . . . . . . Robot Hit Streak 24 | . 1 . 24 9 . . . . . . Robot Miss Streak 6 | . . . 2 6 . . . . . . Penetration Max . | . . . . . . . . . . . Secondary Targets . | . . . . . . . . . . . Shots Hit Robots 161 | . 1 . 37 53 10 22 . 16 4 18 Core Hits 91 | . 12 . 27 26 5 11 . 2 2 6 Critical Kills 1 | . . . 1 . . . . . . . Critical Parts Destroyed . | . . . . . . . . . . . Critical Strikes 10 | . . . 1 . . 3 . 3 . 3 Meltdown 1 | . . . 1 . . . . . . . Sever 9 | . . . . . . 3 . 3 . 3 Melee Attacks 150 | . . . . 51 17 26 . 19 12 25 Impact . | . . . . . . . . . . . Slashing 150 | . . . . 51 17 26 . 19 12 25 Piercing . | . . . . . . . . . . . Sneak Attacks 42 | . . . . 11 3 22 . 2 2 2 Combat Hostiles 2 | . . . . . . . . 2 . . Follow-up Attacks 10 | . . . . 2 1 1 . 3 2 1 Damage Inflicted 6346 | . 486 . 834 1620 443 1378 . 603 255 727 Guns 536 | . . . 101 435 . . . . . . Cannons 84 | . . . 84 . . . . . . . Explosions 1135 | . 486 . 649 . . . . . . . Melee 4591 | . . . . 1185 443 1378 . 603 255 727 Ramming . | . . . . . . . . . . . Kinetic 536 | . . . 101 435 . . . . . . Thermal 84 | . . . 84 . . . . . . . Explosive 1135 | . 486 . 649 . . . . . . . Electromagnetic . | . . . . . . . . . . . Impact . | . . . . . . . . . . . Slashing 4591 | . . . . 1185 443 1378 . 603 255 727 Piercing . | . . . . . . . . . . . Highest Corruption . | . . . . . . . . . . . Average Corruption . | . . . . . . . . . . . Corruption Purged . | . . . . . . . . . . . Corruption Blocked . | . . . . . . . . . . . Overload Shots . | . . . . . . . . . . . Overflow Damage 477 | . 1 . . 203 . 156 . 53 63 1 Projectiles . | . . . . . . . . . . . Explosions 1 | . 1 . . . . . . . . . Melee 476 | . . . . 203 . 156 . 53 63 1 Knockbacks . | . . . . . . . . . . . Impact . | . . . . . . . . . . . Kinetic . | . . . . . . . . . . . Secondary . | . . . . . . . . . . . Self-Inflicted Damage 219 | . 32 . 187 . . . . . . . Shots 9 | . 1 . 8 . . . . . . . Rammed . | . . . . . . . . . . . Targets Rammed . | . . . . . . . . . . . Kicked . | . . . . . . . . . . . Crushed . | . . . . . . . . . . . Highest Temperature 445 | . 54 . 445 270 . . . . . 9 Average Temperature 124 | . 36 . 150 104 . . . . . 9 Received Heat Transfer 1200 | . 45 . 195 513 36 . . 180 . 231 Effects 3 | . . . 2 1 . . . . . . Shutdowns 1 | . . . 1 . . . . . . . Energy Bleed 1 | . . . 1 . . . . . . . Interference 1 | . . . . 1 . . . . . . Siege Activations . | . . . . . . . . . . . Martial Activations . | . . . . . . . . . . . Shielding Activations . | . . . . . . . . . . . Robots Disrupted . | . . . . . . . . . . . Combat Hostiles . | . . . . . . . . . . . Robots Corrupted . | . . . . . . . . . . . Combat Hostiles . | . . . . . . . . . . . Parts Fried . | . . . . . . . . . . . Impact Corruptions . | . . . . . . . . . . . Robots Melted 1 | . . . 1 . . . . . . . Combat Hostiles 1 | . . . 1 . . . . . . . Parts Melted 2 | . . . 2 . . . . . . . Heat Transferred 148 | . . . 148 . . . . . . . Parts Sabotaged . | . . . . . . . . . . . Parts Stolen . | . . . . . . . . . . . Parts Stripped . | . . . . . . . . . . . Power Chain Reactions . | . . . . . . . . . . . Alert | -11 -10 -10 -9 -8 -7 -7 -7 -7 -6 -6 ------- Run | Yrd Mat Min Mat Mat Fac Was Fac DSF Fac Low Maximum Alert Level 1 | . . . 1 1 . . . . . . Low Security (%) 86 | 100 100 100 66 77 100 100 100 100 100 . Level 1 13 | . . . 33 22 . . . . . . Level 2 . | . . . . . . . . . . . Level 3 . | . . . . . . . . . . . Level 4 . | . . . . . . . . . . . Level 5 . | . . . . . . . . . . . High Security . | . . . . . . . . . . . Max Security . | . . . . . . . . . . . Peak Influence 366 | . 147 53 314 366 183 62 . 55 38 . Initial 156 | . . 53 12 126 156 62 . . 28 . Average 113 | . 22 43 143 180 162 17 . 22 30 . Influence Increases 1495 | . 147 . 415 667 63 18 . 85 40 60 Destroy 0b10 Robot/C 680 | . 80 . 180 300 20 . . 40 . 60 Destroy 0b10 Robot/NC 105 | . 20 . 10 50 15 . . . 10 . Destroy Leader 216 | . 12 . 84 110 10 . . . . . Disable Machine 75 | . 15 . 30 . 15 . . . 15 . Anti-Garrison Action 150 | . . . . 150 . . . . . . Destroy Structure 164 | . 20 . 111 12 3 18 . . . . Partial Spotted 15 | . . . . . . . . . 15 . Lose Combat Pursuer 90 | . . . . 45 . . . 45 . . Influence Decreases 1475 | . 10 104 147 623 229 197 . 30 67 68 Entered New Map 624 | . . 84 21 175 189 117 . . 27 11 Time Decay 731 | . 10 20 126 398 40 50 . . 40 47 Lost Part 90 | . . . . 50 . . . 30 . 10 Lost Ally 30 | . . . . . . 30 . . . . Squads Dispatched 10 | . 1 . 2 5 1 . . . 1 . Investigation 2 | . . . 1 1 . . . . . . Extermination . | . . . . . . . . . . . Reinforcement 5 | . 1 . 1 1 1 . . . 1 . Assault 2 | . . . . 2 . . . . . . Garrison 1 | . . . . 1 . . . . . . Intercept . | . . . . . . . . . . . Searches Triggered . | . . . . . . . . . . . Construction Impeded . | . . . . . . . . . . . Haulers Reinforced . | . . . . . . . . . . . Active Scanning Responses . | . . . . . . . . . . . Cargo Convoy Interrupts . | . . . . . . . . . . . Stealth | -11 -10 -10 -9 -8 -7 -7 -7 -7 -6 -6 --------- Run | Yrd Mat Min Mat Mat Fac Was Fac DSF Fac Low Distress Signals 1 | . 1 . . . . . . . . . Communications Jammed . | . . . . . . . . . . . Distress Signals . | . . . . . . . . . . . Times Spotted 68 | . 10 . 11 20 2 6 . 9 2 8 Peak Tracking Total 7 | . 7 . 4 5 1 5 . 6 1 7 Tactical Retreats 5 | . . . . 2 . . . 3 . . Traps | -11 -10 -10 -9 -8 -7 -7 -7 -7 -6 -6 ------- Run | Yrd Mat Min Mat Mat Fac Was Fac DSF Fac Low Traps Triggered 6 | . 1 . 1 2 1 . . 1 . . Indirectly . | . . . . . . . . . . . Trap Hack Attempts . | . . . . . . . . . . . Triggered . | . . . . . . . . . . . Disarmed . | . . . . . . . . . . . Reprogrammed . | . . . . . . . . . . . Reused . | . . . . . . . . . . . Traps Extracted . | . . . . . . . . . . . Installed . | . . . . . . . . . . . Triggered . | . . . . . . . . . . . Machines | -11 -10 -10 -9 -8 -7 -7 -7 -7 -6 -6 ---------- Run | Yrd Mat Min Mat Mat Fac Was Fac DSF Fac Low Machines Disabled 6 | . 1 . 2 1 1 . . . 1 . Max in Single Turn 1 | . 1 . 1 1 1 . . . 1 . Garrison Access 1 | . . . . 1 . . . . . . Machines Repaired . | . . . . . . . . . . . Machines Dismantled . | . . . . . . . . . . . Machines Sabotaged . | . . . . . . . . . . . Overloaded Fab Kills . | . . . . . . . . . . . Hacking | -11 -10 -10 -9 -8 -7 -7 -7 -7 -6 -6 --------- Run | Yrd Mat Min Mat Mat Fac Was Fac DSF Fac Low Machines Accessed 1 | . . . . . . . 1 . . . Terminals 1 | . . . . . . . 1 . . . Fabricators . | . . . . . . . . . . . Repair Stations . | . . . . . . . . . . . Recycling Units . | . . . . . . . . . . . Scanalyzers . | . . . . . . . . . . . Garrison Access . | . . . . . . . . . . . Total Hacks 2 | . . . . . . . 2 . . . Successful 1 | . . . . . . . 1 . . . Failed 1 | . . . . . . . 1 . . . Catastrophic . | . . . . . . . . . . . Database Lockouts . | . . . . . . . . . . . Manual . | . . . . . . . . . . . Terminals 2 | . . . . . . . 2 . . . Fabricators . | . . . . . . . . . . . Repair Stations . | . . . . . . . . . . . Recycling Units . | . . . . . . . . . . . Scanalyzers . | . . . . . . . . . . . Garrison Access . | . . . . . . . . . . . Terminal Hacks 1 | . . . . . . . 1 . . . Open DSF 1 | . . . . . . . 1 . . . Fabricator Hacks . | . . . . . . . . . . . Repair Station Hacks . | . . . . . . . . . . . Recycling Unit Hacks . | . . . . . . . . . . . Scanalyzer . | . . . . . . . . . . . Garrison Access Hacks . | . . . . . . . . . . . Unauthorized Hacks . | . . . . . . . . . . . Terminals . | . . . . . . . . . . . Fabricators . | . . . . . . . . . . . Repair Stations . | . . . . . . . . . . . Recycling Units . | . . . . . . . . . . . Scanalyzers . | . . . . . . . . . . . Garrison Access . | . . . . . . . . . . . Data Cores Recovered . | . . . . . . . . . . . Used . | . . . . . . . . . . . Hacking Detections . | . . . . . . . . . . . Full Trace Events . | . . . . . . . . . . . Feedback Events . | . . . . . . . . . . . Feedback Blocked . | . . . . . . . . . . . Robot Schematics Acquired . | . . . . . . . . . . . Robots Built . | . . . . . . . . . . . Authchips . | . . . . . . . . . . . Time . | . . . . . . . . . . . Total Robot Build Rating . | . . . . . . . . . . . Part Schematics Acquired . | . . . . . . . . . . . Parts Built . | . . . . . . . . . . . Authchips . | . . . . . . . . . . . Time . | . . . . . . . . . . . Total Part Build Rating . | . . . . . . . . . . . Parts Repaired . | . . . . . . . . . . . Time . | . . . . . . . . . . . Parts Recycled . | . . . . . . . . . . . Recycled Matter . | . . . . . . . . . . . Retrieved Matter . | . . . . . . . . . . . Retrieved Components . | . . . . . . . . . . . Parts Scanalyzed . | . . . . . . . . . . . Part Schematics Acquired . | . . . . . . . . . . . Parts Damaged . | . . . . . . . . . . . Bothacking | -11 -10 -10 -9 -8 -7 -7 -7 -7 -6 -6 ------------ Run | Yrd Mat Min Mat Mat Fac Was Fac DSF Fac Low Used RIF Installer . | . . . . . . . . . . . Robots Hacked . | . . . . . . . . . . . Non-combat . | . . . . . . . . . . . Combat . | . . . . . . . . . . . Robot Hacks Applied . | . . . . . . . . . . . Relay Couplers Released . | . . . . . . . . . . . Fabnet Peak Effective % . | . . . . . . . . . . . Robots Rewired . | . . . . . . . . . . . Allies Hacked . | . . . . . . . . . . . Hacks Repelled . | . . . . . . . . . . . Allies | -11 -10 -10 -9 -8 -7 -7 -7 -7 -6 -6 -------- Run | Yrd Mat Min Mat Mat Fac Was Fac DSF Fac Low Total Allies 20 | . . . . . . 20 . . . . Largest Group 19 | . . . . . . 19 . . . . Highest-Rated Group 475 | . . . . . . 475 . . . . Highest-Rated Ally 35 | . . . . . . 35 . . . . Total Orders . | . . . . . . . . . . . Ally Attacks 102 | . . . . . . 102 . . . . Total Damage 3208 | . . . . . . 3208 . . . . Kills 12 | . . . . . . 12 . . . . Allies Corrupted . | . . . . . . . . . . . Allies Melted . | . . . . . . . . . . . Intel | -11 -10 -10 -9 -8 -7 -7 -7 -7 -6 -6 ------- Run | Yrd Mat Min Mat Mat Fac Was Fac DSF Fac Low Active Infowar (turns) 1035 | . . . . 71 97 222 6 206 96 337 Terrain 1035 | . . . . 71 97 222 6 206 96 337 Robot Analysis Total . | . . . . . . . . . . . Derelict Logs Recovered 1 | . . . . . . . . . . 1 Drone Launches . | . . . . . . . . . . . Drone Recoveries . | . . . . . . . . . . . Exploration | -11 -10 -10 -9 -8 -7 -7 -7 -7 -6 -6 ------------- Run | Yrd Mat Min Mat Mat Fac Was Fac DSF Fac Low Turns Passed 2459 | 83 155 53 260 944 97 222 6 206 96 337 Spaces Moved 2093 | 52 104 89 289 766 106 187 6 101 181 212 Core 15 | 8 7 . . . . . . . . . Treads 119 | 44 75 . . . . . . . . . Legs . | . . . . . . . . . . . Wheels . | . . . . . . . . . . . Hover 696 | . 22 70 . 219 106 187 6 86 . . Flight 1263 | . . 19 289 547 . . . 15 181 212 Fastest Speed 32 | 50 50 40 32 32 56 56 116 112 32 32 Average Speed 72 | 145 131 55 37 85 56 75 116 147 36 32 Slowest Speed 195 | 160 160 60 40 120 56 116 116 195 112 112 Overloaded Moves . | . . . . . . . . . . . Propulsion Burnouts . | . . . . . . . . . . . Robots Hopped 4 | . . . 2 2 . . . . . . Potential Cave-ins . | . . . . . . . . . . . Cave-ins Triggered . | . . . . . . . . . . . Exploration Rate (%) 33 | 4 34 23 24 45 3 78 . 80 7 32 Regions Visited 10 Branch Regions 2 Pre-discovered Areas . | . . . . . . . . . . . Known Exits Taken 1 | . . . . . . . 1 . . . Unknown Exits Taken 6 | 1 1 1 1 1 . . . . 1 . Scrap Searched 1 | . . 1 . . . . . . . . Spaces Dug 20 | . . . . 12 3 1 . . . 4 Terrain Destroyed 196 | . 24 . 152 12 3 1 . . . 4 Melee 20 | . . . . 12 3 1 . . . 4 Projectile . | . . . . . . . . . . . AOE 176 | . 24 . 152 . . . . . . . Terrain Rammed . | . . . . . . . . . . . Walls Destroyed . | . . . . . . . . . . . Machines Disabled . | . . . . . . . . . . . Actions | -11 -10 -10 -9 -8 -7 -7 -7 -7 -6 -6 --------- Run | Yrd Mat Min Mat Mat Fac Was Fac DSF Fac Low Total 2728 | 57 118 91 387 939 122 234 5 131 196 448 Wait 303 | . . . 49 46 . 2 . . . 206 Move 2076 | 51 103 88 284 761 106 186 5 100 180 212 Hop 4 | . . . 2 2 . . . . . . Pick Up . | . . . . . . . . . . . Fast Attach 43 | 6 5 2 4 12 1 2 . 6 4 1 Attach . | . . . . . . . . . . . Detach 2 | . . . . . 1 . . . 1 . Swap 9 | . . . 1 7 . 1 . . . . Drop 33 | . 6 1 3 13 . 3 . 3 2 2 Fire 68 | . 4 . 38 26 . . . . . . Melee 128 | . . . . 45 14 22 . 16 9 22 Ram . | . . . . . . . . . . . Kick . | . . . . . . . . . . . Crush . | . . . . . . . . . . . Escape Stasis . | . . . . . . . . . . . Rewire . | . . . . . . . . . . . Trap . | . . . . . . . . . . . Miscellaneous 62 | . . . 6 27 . 18 . 6 . 5 Route ------- -11/Scrapyard -10/Materials -10/Mines -9/Materials (discovered 2 exits: [*Mat] / [*Sto]) -8/Materials (discovered 2 exits: [*Fac x2]) -7/Factory -7/Waste -7/Factory -7/DSF -6/Factory -6/Lower Caves History --------- Turn | Location | Event 1 | -11/Scrapyard | Upgraded with Power slot (x1) 1 | -11/Scrapyard | Upgraded with Propulsion slot (x1) 1 | -11/Scrapyard | Upgraded with Utility slot (x1) 1 | -11/Scrapyard | Upgraded with Weapon slot (x1) 9 | -11/Scrapyard | Discovered new exit (range 16) 84 | -11/Scrapyard | Entered Materials 232 | -10/Materials | Discovered new exit (range 12) 239 | -10/Materials | Entered Mines 247 | -10/Mines | Received a Rocket Launcher from a helpful Derelict 288 | -10/Mines | Discovered new exit (range 10) 292 | -10/Mines | Entered Materials 294 | -9/Materials | Reached level 2 305 | -9/Materials | Build established: Mutant 422 | -9/Materials | Reached level 3 440 | -9/Materials | Discovered new exit (range 15) 461 | -9/Materials | Core integrity fell below 50% 550 | -9/Materials | Discovered new exit (range 10) 552 | -9/Materials | Entered another Materials area 553 | -8/Materials | Core integrity fell below 50% 554 | -8/Materials | Reached level 4 583 | -8/Materials | Core integrity fell below 20% 645 | -8/Materials | Lost 3 parts (1p2u) 721 | -8/Materials | Reached level 5 1165 | -8/Materials | Build established: Gladiator 1225 | -8/Materials | Discovered new exit (range 15) 1296 | -8/Materials | Garrison activated, responded to threat 1309 | -8/Materials | Reached level 6 1457 | -8/Materials | Discovered new exit (range 5) 1496 | -8/Materials | Entered Factory 1497 | -7/Factory | Core integrity fell below 50% 1498 | -7/Factory | Reached level 7 1593 | -7/Factory | Sucked down chute 1593 | -7/Factory | Entered Waste 1594 | -7/Waste | Met a frightened Derelict 1632 | -7/Waste | Spotted C-40 Crusher 1633 | -7/Waste | Spotted C-40 Crusher 1642 | -7/Waste | Warlord forces began an assault 1643 | -7/Waste | Spotted C-40 Crusher 1648 | -7/Waste | Spotted C-40 Crusher 1650 | -7/Waste | Spotted C-40 Crusher 1652 | -7/Waste | Spotted C-40 Crusher 1653 | -7/Waste | Allies destroyed C-40 Crusher 1658 | -7/Waste | Allies destroyed C-40 Crusher 1661 | -7/Waste | Allies destroyed C-40 Crusher 1668 | -7/Waste | Allies destroyed C-40 Crusher 1678 | -7/Waste | Allies destroyed C-40 Crusher 1688 | -7/Waste | Allies destroyed C-40 Crusher 1715 | -7/Waste | Lost 8 allies 1756 | -7/Waste | Murdered 11 allies 1792 | -7/Waste | Discovered new exit (range 14) 1815 | -7/Waste | Entered Factory 1820 | -7/Factory | Identified exit to DSF 1821 | -7/Factory | Entered DSF 1821 | -7/DSF | Reached level 8 1890 | -7/DSF | Additional patrols routed to DSF 1933 | -7/DSF | Core integrity fell below 20% 2007 | -7/DSF | Discovered new exit (range 12) 2027 | -7/DSF | Entered Factory 2028 | -6/Factory | Core integrity fell below 50% 2028 | -6/Factory | Core integrity fell below 20% 2029 | -6/Factory | Reached level 9 2113 | -6/Factory | Discovered new exit (range 10) 2123 | -6/Factory | Entered Lower Caves 2125 | -6/Lower Caves | Reached level 10 2138 | -6/Lower Caves | Attracted the attention of an 0b10 checkpoint 2165 | -6/Lower Caves | Learned Factory stockpile data 2412 | -6/Lower Caves | Build established: Scout 2439 | -6/Lower Caves | Attracted the attention of an 0b10 base 2460 | -6/Lower Caves | Destroyed by G-50 Soldier with Heavy Laser Last Messages --------------- 02165_ Acquired derelict log, extracted data. Data stored: Factory stockpile data. 02288_ Sneak attack on F0-YKC(S). 02288_ Destroyed Med. Treads. 02291_ Sneak attack on F0-YKC(S). 02291_ F0-YKC(S) destroyed. 02438_ Upgraded: Core Integrity (+50) 02441_ S-27 Virus destroyed. 02447_ Used Protomatter to restore core integrity (+39, depleted) 02448_ Lgt. Nuclear Core fries itself beyond repair. 02448_ S-27 Virus destroyed. 02453_ Used Protomatter to restore core integrity (+57, depleted) 02455_ VTOL Module fries itself beyond repair. 02457_ G-50 Soldier Carbon-fiber Leg severed. 02459_ Imp. Medium Armor Plating destroyed. 02459_ Chainsword follow-up attack on G-50 Soldier. 02459_ G-50 Soldier Carbon-fiber Leg severed. 02460_ Critical hit (Burn: +37). Map ----- +----------------------------------------------------+ | ?????????????????????????????????????????????????? | | ?????????????????????????????????????????????????? | | ?????????????????????????????????????????????????? | | ?????????????????????????????????????????????????? | | ?????????????????????????????????????????????????? | | ?????????????????????????????????????????????????? | | ?????????????????????????????????????????????????? | | ?????????????????????????????????????????????????? | | ?????????????????????????????????????????????????? | | ?????????????????????????????????????????????????? | | ????????????????????##? ? ????????????????????? | | ???????????????????#?? ?#???????????????????#? | | ????????????????###??## ?## ????????????????#? | | ????????????????#???### ### ???????????? ##?? | | ???????????????####### ### ?#????????? ? ### | | ??????????????#?##### #### ????? ? ### | | ????????????##?## ### ???? ? ? | | ??????????????## #### ? ???#? # | | ??????????? ### ######? ???#???#?## | | ??????????? ####### ?##?##### | | ???????????? ######?# ?? ######### | | ??????????## $ ?? ? ? #### # | | ???????????# g | | ??????????### g#?###+##### ? | | ????????? ## gg#" $"# | | ??????? ## @ #" "# ### | | ??????? ### #" =% "# ##### | | ???? ?? ### #" "# ###### | | ??????? ##### s# ;" # ###### | | ? ?#??? #### $# #" """# ####### | | ????#?? ### # # #"T """# ####### | | #???#?# ### # # #" """# ###### | | ??????###?## #""" """# ##### | | ???????#?#### #####+##### ##### | | ?????##### ## #### # % ##### | | ?##??#"""## # ### ## ##### | | ? #??#""" # ## ####################### | | ?? ###""" ####################### | | ?? #?#""" #### ############ ######### | | ? ??#"""## ############ ### #### # | | ? ?#???### ############## ### # | | ????###??# ########### ## # | | ???#???## ########## ## # #### ## | | ???####?# ######### ## ## ##### ## ## | | ?????##?## ######## # ############ ######## | | #### # ### #################### | | ################### | | ################## | | #### ####### ################### | | ##?### ##################?######### | +----------------------------------------------------+ Best States ------------- Heat Dissipation 31 Energy Generation 34 Energy Capacity 375 Matter Stores 300 Matter Capacity 300 Sight Range 16 Robot Scan Range 18 Terrain Scan Range 16 Terrain Scan Density 810 Armor Coverage 225 Weapon Shielding 33 Evasion (%) 63 Recoil Reduction 2 Particle Charging 15 Offensive Hacking 10 Defensive Hacking 10 Item Schematics ----------------- None Robot Schematics ------------------ None Fabricated ------------ Nothing Repaired ---------- Nothing Alien Tech Used ----------------- None Achievements -------------- Collateral Damage Challenges ------------ None RPGLIKE | -11 -10 -10 -9 -8 -7 -7 -7 -7 -6 -6 --------- Run | Yrd Mat Min Mat Mat Fac Was Fac DSF Fac Low Levels Raised 9 | . . . 2 3 1 . . 1 1 1 XP Earned 17115 | 3000 525 500 2950 4300 1725 290 . 1450 1575 800 XP Spent 16480 | 2700 300 . 1350 6130 1300 . . 1425 . 3275 Upgrades 65 | 6 6 . 9 30 2 . . 5 . 7 Power Slot 1 | 1 . . . . . . . . . . Propulsion Slot 1 | 1 . . . . . . . . . . Utility Slot 1 | 1 . . . . . . . . . . Weapon Slot 1 | 1 . . . . . . . . . . Core Integrity 32 | . 6 . . 18 . . . 5 . 3 Heat Dissipation 1 | . . . . 1 . . . . . . Mass Support 3 | 2 . . . . . . . . . 1 Sensor Range 9 | . . . 9 . . . . . . . Terrain Scan Density 8 | . . . . 8 . . . . . . Melee Accuracy 4 | . . . . . 1 . . . . 3 KI Damage % 4 | . . . . 3 1 . . . . . Protomatter Created 575 | . . . 63 253 . 227 . . . 32 Integrity Restored 1350 | . . . 126 600 . 399 . 129 . 96 Core 1350 | . . . 126 600 . 399 . 129 . 96 Protomatter Decayed 71 | . . . . 53 . . . . . 18 Game ------ Seed AlphaWeightCoupler Manual? 0 Play Time 00:25:53 Cumulative 38.1 hours Start 2025.10.21 @ 06:28:02 End 2025.10.21 @ 06:51:32 Sessions 1 Manual Loads 0 Difficulty Rogue Special Mode Winter2019/RPGLIKE Game No. 151 Rogue 151 Adventurer 0 Explorer 0 Win Type - Total 0 Types 0/0/0/0/0/0/0/0/0/0 Lore% 12 Gallery% 32 Achievement% 31 Wizard Run 0 Options --------- Layout 2 ASCII 0 Keyboard 1 Movement Vi Keybinds 0 Fullscreen 1 Font 16/SmallcapsGlow Map View 55x47 Zoom Use 0% Tactical HUD 1 Map Filters NONE Filters NONE Steam 1 RUN: f89c3490-00b5-4fb1-a042-51ed119c5bb7